bitfinex/quotes_ETHUSD_20250715
["timestamp","ask_amount","ask_price","bid_price","bid_amount"]
[1752599326577,0.03264576,3048.9,3048.5,5.416]
[1752599326875,3.28019418,3048.6,3048.5,5.416]
[1752599327439,3.28019418,3048.6,3048.5,0.164]
[1752599327642,0.791,3048.5,3048.1,0.164]
[1752599327874,0.8024,3047.9,3047.2,1.2212]
[1752599328176,0.8024,3047.9,3047.2,5.247]
[1752599328177,3.28159354,3047.3,3047.2,5.247]
[1752599328335,0.4745,3047.7,3046.8,0.164]
[1752599328535,3.44564756,3047.3,3046.8,0.164]
[1752599328774,3.281584,3047.4,3046.9,0.03282024]
[1752599328956,3.28164784,3047.3,3047.0,0.164]
[1752599329159,0.03264576,3047.4,3047.0,0.164]
[1752599329160,3.31417714,3047.4,3047.0,0.164]
[1752599329355,3.28153138,3047.4,3047.1,0.456]
[1752599329583,3.28139218,3047.5,3047.1,0.70228952]
[1752599329762,0.03264576,3047.6,3047.2,0.8171]
[1752599329966,3.28143026,3047.5,3047.3,0.164]
[1752599330192,3.281603,3047.3,3047.0,5.246]
[1752599330388,3.28142019,3047.5,3047.1,0.456]
[1752599330565,3.31406595,3047.5,3047.1,0.456]
[1752599330965,3.28113911,3047.8,3047.1,3.31455367]
[1752599331165,0.8024,3047.9,3047.1,3.31455367]
[1752599331166,0.164,3047.9,3047.4,0.164]
[1752599331365,3.164,3047.9,3047.5,1.2225]
[1752599331566,3.4449533,3047.9,3047.5,1.2225]
[1752599332212,3.44500459,3047.9,3047.5,1.2225]
[1752599332397,3.28107658,3047.8,3047.5,1.2225]
[1752599332711,3.28107658,3047.8,3047.1,0.25054905]
[1752599332712,3.2812705,3047.6,3047.1,0.25054905]
[1752599333016,0.03264576,3047.7,3047.0,1.2803]
[1752599333017,0.03264576,3047.5,3047.3,5.241]
[1752599333180,3.31396196,3047.6,3047.3,5.241]
[1752599333381,3.28107787,3047.8,3047.3,5.241]
[1752599333583,3.28160545,3047.3,3047.0,0.25172512]
[1752599333806,3.31416428,3047.4,3047.1,0.164]
[1752599334183,3.28159354,3047.3,3047.1,0.164]
[1752599335416,0.03264576,3047.4,3047.1,0.164]
[1752599335594,0.03264576,3047.5,3047.1,0.62]
[1752599335996,0.03264576,3047.6,3047.2,1.24]
[1752599336300,0.03264576,3047.6,3047.3,5.851]
[1752599336496,0.164,3047.8,3047.3,5.851]
[1752599336825,3.28128453,3047.6,3047.3,5.851]
[1752599337059,3.28128453,3047.6,3046.6,3.28327657]
[1752599337060,0.7622,3047.4,3046.6,3.28327657]
[1752599337334,0.03264576,3047.3,3046.7,5.229]
[1752599337543,3.31429676,3047.3,3046.8,3.28208092]
[1752599337894,3.28129544,3047.6,3047.0,0.7801]
[1752599338123,0.03264576,3047.5,3047.0,1.02202117]
[1752599338428,3.28154334,3047.4,3047.0,6.24902117]
[1752599338826,3.28156584,3047.4,3047.0,6.24902117]
[1752599339013,3.31408898,3047.5,3047.0,9.53089972]
[1752599339219,3.31408898,3047.5,3047.0,4.75989972]
[1752599339421,3.31407282,3047.5,3047.1,0.456]
[1752599339752,0.03264576,3047.5,3047.1,0.456]
[1752599339889,3.28144752,3047.5,3047.1,0.456]
[1752599340094,0.03264576,3047.7,3047.2,0.48881701]
[1752599340327,3.3138647,3047.7,3047.2,3.77046552]
[1752599340934,3.28129027,3047.6,3047.2,3.77046552]
[1752599341093,0.03264576,3047.7,3047.3,3.28159076]
[1752599341300,3.31382826,3047.7,3047.3,0.456]
[1752599341751,0.03264576,3047.7,3047.3,3.7375814]
[1752599341915,6.31364993,3047.9,3047.4,3.28147941]
[1752599342127,0.4745,3048.2,3047.5,0.456]
[1752599342354,3.28141423,3047.5,3047.3,5.217]
[1752599342765,3.28131581,3047.6,3047.3,5.217]
[1752599343077,3.31387047,3047.7,3047.3,5.217]
[1752599343348,3.31387047,3047.7,3047.4,0.456]
[1752599343517,0.03264576,3047.8,3047.4,0.456]
[1752599343840,3.28121102,3047.7,3047.3,5.217]
[1752599344049,3.28117952,3047.7,3047.3,5.217]
[1752599344343,3.28127944,3047.6,3047.3,5.217]
[1752599344509,3.7557705,3047.6,3047.3,5.217]
[1752599344711,3.28148585,3047.4,3047.3,5.217]
[1752599344911,4.55241956,3047.6,3047.3,5.217]
[1752599345124,3.31390337,3047.7,3047.3,5.217]
[1752599345322,0.03264576,3047.7,3047.3,8.95458582]
[1752599345524,0.03264576,3047.7,3047.3,5.673]
[1752599345725,3.28117632,3047.7,3047.3,5.673]
[1752599346014,0.03264576,3047.8,3047.4,0.456]
[1752599346335,0.03264576,3047.9,3047.4,0.456]
[1752599346832,3.28117008,3047.7,3047.2,3.28164853]
[1752599347009,3.28117008,3047.7,3047.1,0.456]
[1752599347010,3.28151247,3047.4,3047.1,5.38]
[1752599347211,3.28148607,3047.4,3047.1,5.38]
[1752599347424,0.03264576,3047.5,3047.1,5.38]
[1752599347630,3.31407609,3047.5,3047.1,5.38]
[1752599347832,0.03264576,3047.6,3047.1,5.38]
[1752599348153,3.44520846,3047.7,3047.2,3.73769808]
[1752599348315,3.7775,3048.0,3047.3,0.456]
[1752599348518,0.97414576,3048.0,3047.5,0.164]
[1752599349043,3.2809632,3047.9,3047.5,0.164]
[1752599349248,0.03264576,3047.8,3047.5,0.164]
[1752599349459,3.2812705,3047.6,3047.0,1.00292117]
[1752599349749,0.03264576,3047.8,3047.2,0.164]
[1752599349750,3.28159354,3047.3,3047.2,0.164]
[1752599349913,3.28153935,3047.4,3047.2,0.164]
[1752599350114,0.4745,3047.3,3047.2,0.164]
[1752599350327,3.78868511,3047.4,3047.2,0.164]
[1752599350915,3.28159354,3047.3,3047.2,0.164]
[1752599351246,0.03264576,3047.4,3047.2,0.164]
[1752599351444,0.03264576,3047.6,3047.2,3.44564315]
[1752599351650,0.03264576,3047.7,3047.3,0.456]
[1752599351809,6.459,3048.0,3047.0,0.25006895]
[1752599351810,0.4745,3047.6,3047.4,0.164]
[1752599352025,3.28125824,3047.7,3047.4,0.164]
[1752599352226,3.313904,3047.7,3047.4,0.164]
[1752599352430,4.06833114,3047.6,3047.4,0.164]
[1752599352637,1.2615,3047.6,3047.4,0.164]
[1752599353375,4.54279471,3047.6,3047.4,0.164]
[1752599353866,0.50714576,3047.5,3047.0,5.45630938]
[1752599354050,0.50714576,3047.5,3047.1,0.164]
[1752599354253,0.4745,3047.4,3047.0,0.001]
[1752599354453,0.03264576,3047.3,3047.0,0.001]
[1752599354657,3.78878242,3047.3,3047.0,0.001]
[1752599354856,0.4745,3047.2,3047.0,0.001]
[1752599355065,3.75621004,3047.2,3047.0,0.001]
[1752599355369,0.03264576,3047.1,3047.0,0.001]
[1752599355668,0.03264576,3047.2,3047.0,0.001]
[1752599356078,0.164,3047.4,3047.0,0.001]
[1752599356375,3.44555395,3047.4,3047.0,0.001]
[1752599356666,0.03264576,3047.3,3047.0,0.001]
[1752599357650,0.19664576,3047.4,3047.0,0.001]
[1752599357844,0.03264576,3047.4,3047.1,3.2817887]
[1752599358048,0.03264576,3047.4,3047.0,0.6106]
[1752599358548,0.03264576,3047.4,3047.1,3.28176695]
[1752599358752,0.951,3047.6,3047.1,3.28176695]
[1752599358753,0.03264576,3047.5,3047.1,3.28176695]
[1752599358959,0.03264576,3047.5,3047.1,3.28177589]
[1752599359151,0.03264576,3047.5,3047.1,0.74194151]
[1752599359340,3.28105654,3047.8,3047.2,3.72724579]
[1752599359540,3.28105654,3047.8,3047.3,3.44554082]
[1752599359541,0.03264576,3047.7,3047.3,3.44554082]
[1752599359747,0.164,3047.8,3047.4,3.28144862]
[1752599360048,0.164,3047.8,3047.4,3.72704862]
[1752599360254,0.164,3047.8,3047.4,3.72707836]
[1752599360440,0.164,3047.8,3047.4,0.4456]
[1752599360642,0.164,3047.8,3047.4,3.72707349]
[1752599360844,0.164,3047.8,3047.4,0.4456]
[1752599361676,0.164,3047.8,3047.5,3.28136614]
[1752599361878,0.50334576,3047.7,3047.3,0.164]
[1752599362086,3.28177195,3047.2,3047.0,0.001]
[1752599362292,0.03264576,3047.1,3047.0,0.001]
[1752599362486,3.28180893,3047.1,3047.0,0.001]
[1752599362688,3.31445469,3047.1,3047.0,0.001]
[1752599363091,0.164,3047.2,3047.0,0.001]
[1752599363306,0.19664576,3047.2,3047.0,0.001]
[1752599363491,3.44571042,3047.2,3047.0,0.001]
[1752599363796,0.164,3047.2,3047.0,0.001]
[1752599364176,8.50905924,3047.5,3047.0,4.05115963]
[1752599364491,3.4781709,3047.4,3047.0,0.7693]
[1752599364879,0.19664576,3047.4,3047.0,0.7693]
[1752599365091,0.164,3047.4,3047.1,3.72738742]
[1752599365400,0.19664576,3047.7,3047.2,3.7272533]
[1752599365715,0.03264576,3047.7,3047.3,0.4456]
[1752599365877,3.31382371,3047.7,3047.3,0.6096]
[1752599366191,3.31382371,3047.7,3047.3,0.164]
[1752599366395,3.78455615,3047.7,3047.3,0.164]
[1752599366595,3.28148585,3047.4,3047.3,0.164]
[1752599366895,3.28180893,3047.1,3047.0,0.001]
[1752599367318,3.31445469,3047.1,3047.0,0.001]
[1752599367689,3.78515469,3047.1,3047.0,0.001]
[1752599368518,3.75250893,3047.1,3047.0,0.001]
[1752599368705,10.53912172,3047.1,3047.0,0.001]
[1752599368905,13.50647596,3047.1,3047.0,0.001]
[1752599370837,14.21250595,3047.1,3047.0,0.001]
[1752599371027,44.21250595,3047.1,3047.0,1e-08]
[1752599372517,14.21350595,3047.1,3047.0,1e-08]
[1752599372704,14.76350595,3047.1,3047.0,1e-08]
[1752599372910,44.76350595,3047.1,3047.0,1e-08]
[1752599373405,9.01850595,3047.1,3047.0,1e-08]
[1752599373630,43.50747596,3047.1,3047.0,1e-08]
[1752599373807,44.21350595,3047.1,3047.0,1e-08]
[1752599374630,39.01850595,3047.1,3047.0,1e-08]
[1752599374820,14.21350595,3047.1,3047.0,1e-08]
[1752599375019,9.01850595,3047.1,3047.0,1e-08]
[1752599375235,7.51080893,3047.1,3047.0,1e-08]
[1752599375422,11.47680893,3047.1,3047.0,1e-08]
[1752599375824,8.47680893,3047.1,3047.0,1e-08]
[1752599376000,8.64080893,3047.1,3047.0,1e-08]
[1752599376334,11.64080893,3047.1,3047.0,1e-08]
[1752599376699,13.67979079,3047.1,3047.0,1e-08]
[1752599377121,14.46319079,3047.1,3047.0,1e-08]
[1752599377323,44.46319079,3047.1,3047.0,1e-08]
[1752599379514,45.01319079,3047.1,3047.0,1e-08]
[1752599379713,45.71718312,3047.1,3047.0,1e-08]
[1752599380064,7.6059398,3046.7,3046.6,1e-08]
[1752599380266,43.88974817,3046.7,3046.6,1e-08]
[1752599380552,45.0644405,3046.7,3046.6,1e-08]
[1752599382014,0.8099,3045.3,3044.6,0.03284503]
[1752599382242,0.164,3045.2,3044.9,4.08429589]
[1752599382439,0.164,3045.4,3045.0,0.4456]
[1752599382652,0.03264576,3045.3,3045.0,0.4456]
[1752599382866,0.164,3045.4,3045.1,0.4456]
[1752599383072,0.164,3045.7,3045.5,3.28347169]
[1752599383270,5.358,3045.9,3045.6,0.4456]
[1752599383481,0.03264576,3045.8,3045.7,0.4456]
[1752599383850,0.03264576,3045.8,3045.4,0.4456]
[1752599384044,3.31595308,3045.8,3045.4,0.4456]
[1752599384243,3.31595308,3045.8,3045.3,0.164]
[1752599384440,3.28344516,3045.6,3045.2,0.8002]
[1752599384639,3.31617943,3045.5,3045.2,0.8002]
[1752599384844,3.31617943,3045.5,3045.1,0.164]
[1752599385070,0.03264576,3045.5,3045.1,0.164]
[1752599385440,3.31621009,3045.5,3045.1,0.164]
[1752599385639,3.28369602,3045.4,3044.8,3.44827814]
[1752599385880,3.48044315,3045.3,3044.8,0.164]
[1752599386057,0.19664576,3045.3,3044.8,3.44828262]
[1752599386252,0.164,3045.3,3044.8,0.164]
[1752599386460,0.03264576,3045.7,3045.6,3.28335059]
[1752599386678,0.03264576,3045.8,3045.6,3.28335059]
[1752599386980,0.03264576,3045.8,3045.7,3.72681746]
[1752599387143,5.195,3046.0,3045.8,3.28318986]
[1752599387344,0.03264576,3045.9,3045.8,3.28318986]
[1752599387952,0.03264576,3045.9,3045.8,3.72668986]
[1752599388268,0.9211,3046.3,3044.9,0.25166378]
[1752599388269,0.03264576,3046.3,3045.5,3.28346683]
[1752599388470,0.03264576,3046.3,3045.6,0.164]
[1752599388471,3.28312931,3045.9,3045.6,0.164]
[1752599388675,0.03264576,3045.8,3045.6,0.164]
[1752599389180,0.03264576,3045.8,3044.9,0.6945]
[1752599389181,3.75601746,3045.7,3044.9,0.6945]
[1752599389354,3.48014089,3045.6,3045.1,0.164]
[1752599389549,0.19664576,3045.6,3045.1,0.164]
[1752599389752,0.19664576,3045.6,3045.2,3.72730566]
[1752599389953,0.19664576,3045.6,3045.3,3.28374064]
[1752599390162,0.19664576,3045.6,3045.4,3.28363822]
[1752599390680,0.19664576,3045.6,3045.4,0.4435]
[1752599391067,0.19664576,3045.6,3045.1,0.6075]
[1752599391276,0.19664576,3045.6,3044.9,0.50258307]
[1752599391277,0.03264576,3045.6,3045.4,3.44760469]
[1752599391448,0.4727,3045.6,3045.4,0.164]
[1752599391648,0.03264576,3045.5,3045.1,3.44796059]
[1752599391988,0.03264576,3045.5,3045.2,3.28385656]
[1752599392198,0.03264576,3045.5,3045.2,3.72735656]
[1752599392400,0.03264576,3045.5,3045.2,3.28381941]
[1752599392703,0.03264576,3045.6,3045.4,3.2836409]
[1752599392906,0.03264576,3045.8,3045.5,3.28348355]
[1752599393440,0.03264576,3045.8,3045.5,0.4435]
[1752599393903,0.03264576,3045.8,3045.6,3.28336451]
[1752599394104,0.03264576,3045.8,3045.6,0.4435]
[1752599394485,0.03264576,3045.8,3045.4,3.69859031]
[1752599394685,0.03264576,3045.8,3045.5,0.4435]
[1752599394883,3.28336907,3045.7,3045.4,0.415]
[1752599395090,3.28353308,3045.5,3045.4,0.164]
[1752599395297,3.31609627,3045.6,3045.4,0.164]
[1752599395908,0.03264576,3045.6,3045.4,0.164]
[1752599396130,0.8301,3045.5,3045.4,0.164]
[1752599396337,3.0,3045.6,3044.8,3.9786929]
[1752599396488,3.31618217,3045.5,3045.0,0.6075]
[1752599396699,0.03264576,3045.4,3045.0,0.6075]
[1752599396912,0.03264576,3045.4,3045.1,3.72738643]
[1752599397245,1.50901824,3045.6,3045.1,3.72738643]
[1752599397246,0.03264576,3045.6,3045.3,3.44772075]
[1752599397510,3.31611798,3045.6,3045.3,0.6075]
[1752599397709,0.03264576,3045.6,3045.3,0.6075]
[1752599398310,0.03264576,3045.6,3045.4,0.4435]
[1752599398514,0.03264576,3045.7,3045.3,3.44770016]
[1752599398720,0.03264576,3045.7,3045.3,3.89220016]
[1752599399099,3.31597208,3045.7,3045.3,0.6085]
[1752599399795,0.03264576,3045.7,3045.3,0.6085]
[1752599400011,0.38063172,3045.7,3045.3,0.165]
[1752599400194,3.28350164,3045.6,3045.3,0.165]
[1752599400398,0.03264576,3045.5,3045.3,0.165]
[1752599401717,0.03264576,3045.6,3045.3,0.165]
[1752599402308,0.03264576,3045.6,3045.3,3.44874536]
[1752599402518,0.03264576,3045.6,3045.3,0.165]
[1752599403239,0.03264576,3045.6,3045.3,0.6085]
[1752599403535,3.31602219,3045.7,3045.3,0.6085]
[1752599404044,3.31602219,3045.7,3045.3,3.8922424]
[1752599404045,0.03264576,3045.7,3045.3,3.8922424]
[1752599404337,6.7557342,3046.0,3045.4,0.6945]
[1752599404338,3.315794,3045.9,3045.4,0.6945]
[1752599404543,0.03264576,3045.8,3045.6,0.164]
[1752599405035,0.03264576,3045.8,3045.7,3.28331746]
[1752599405334,3.28273969,3046.3,3045.8,3.28315906]
[1752599405535,3.31547228,3046.2,3045.8,0.4435]
[1752599405834,0.03264576,3046.2,3046.0,0.164]
[1752599406539,0.03264576,3046.3,3046.0,3.44698062]
[1752599406736,0.7675,3046.8,3046.0,0.6945]
[1752599406937,3.28257201,3046.4,3046.2,0.164]
[1752599407121,0.03264576,3046.3,3045.8,8.47610764]
[1752599407434,3.28288631,3046.1,3045.5,5.193]
[1752599407643,0.7966,3045.9,3045.7,0.164]
[1752599407936,0.03264576,3045.8,3045.7,0.164]
[1752599408234,0.03264576,3046.0,3045.7,0.164]
[1752599408534,0.48192405,3045.9,3045.7,0.164]
[1752599408834,3.31585542,3045.8,3045.7,0.164]
[1752599409032,3.31585542,3045.8,3045.3,0.001]
[1752599409033,3.2835403,3045.5,3045.3,0.001]
[1752599409200,0.03264576,3045.4,3045.3,0.165]
[1752599409406,3.31609622,3045.6,3045.3,0.165]
[1752599409929,3.28355964,3045.5,3045.3,0.165]
[1752599410134,3.2836409,3045.4,3045.3,0.165]
[1752599410721,3.2836409,3045.4,3045.3,0.001]
[1752599410722,3.61526957,3045.4,3045.3,0.001]
[1752599410926,3.64791533,3045.4,3045.3,0.001]
[1752599411501,4.12061533,3045.4,3045.3,0.001]
[1752599411700,7.28461533,3045.4,3045.3,0.001]
[1752599411897,7.25196957,3045.4,3045.3,0.001]
[1752599415235,11.4756409,3045.4,3045.3,0.001]
[1752599415442,4.06564411,3045.5,3045.3,0.001]
[1752599415646,0.03264576,3045.4,3045.3,0.001]
[1752599415821,3.31628666,3045.4,3045.3,0.001]
[1752599416137,0.03264576,3045.4,3045.3,0.001]
[1752599417615,0.03264576,3045.6,3045.3,3.73925209]
[1752599417817,0.03264576,3045.6,3045.3,0.001]
[1752599418012,0.03264576,3045.6,3045.4,0.4546]
[1752599418216,3.03264576,3045.7,3045.4,0.4546]
[1752599418416,0.03264576,3045.7,3045.4,0.4546]
[1752599419219,3.28347282,3045.6,3045.3,0.001]
[1752599419439,0.03264576,3045.5,3045.3,0.001]
[1752599419624,0.03264576,3045.6,3045.3,3.73929669]
[1752599419821,0.03264576,3045.6,3045.3,0.001]
[1752599420017,0.45149837,3045.5,3045.3,0.001]
[1752599420347,0.03264576,3045.4,3045.3,0.4556]
[1752599420517,3.28293004,3046.1,3045.7,3.28329046]
[1752599420716,3.28300743,3046.0,3045.8,0.4546]
[1752599420919,3.31565319,3046.0,3045.5,3.73807941]
[1752599421240,3.31565319,3046.0,3045.6,3.73800493]
[1752599421446,3.97559185,3046.0,3045.3,0.252]
[1752599421629,3.28310187,3045.9,3045.4,3.28363161]
[1752599421946,3.28310187,3045.9,3045.3,0.252]
[1752599421947,0.03264576,3045.9,3045.3,0.28483748]
[1752599422104,3.28299747,3046.0,3045.5,3.28353308]
[1752599422307,0.03264576,3045.9,3045.6,3.73799947]
[1752599422507,0.03264576,3045.9,3045.4,3.2836409]
[1752599422508,3.0,3046.4,3045.7,0.7056]
[1752599422731,3.0,3046.2,3045.8,3.28318501]
[1752599422916,3.28294227,3046.1,3045.8,0.4546]
[1752599423108,0.03264576,3046.0,3045.8,0.4546]
[1752599423307,3.0,3046.2,3045.8,0.4546]
[1752599423308,6.31542615,3046.2,3045.8,0.4546]
[1752599423560,3.28294298,3046.1,3045.8,0.4546]
[1752599423766,0.03264576,3046.0,3045.7,0.251]
[1752599423994,3.28342165,3045.7,3045.5,5.441]
[1752599424131,3.28342165,3045.7,3045.6,0.4546]
[1752599424965,3.28326297,3045.8,3045.6,0.4546]
[1752599425363,3.28331987,3045.7,3045.5,0.251]
[1752599425671,4.1058409,3045.4,3045.3,0.001]
[1752599425873,9.2958409,3045.4,3045.3,0.001]
[1752599426052,9.7541409,3045.4,3045.3,0.001]
[1752599426660,4.5641409,3045.4,3045.3,0.001]
[1752599426954,9.7541409,3045.4,3045.3,0.001]
[1752599427134,11.0743083,3045.4,3045.3,0.001]
[1752599432051,14.0743083,3045.4,3045.3,0.001]
[1752599433486,14.0743083,3045.4,3044.2,3.28491616]
[1752599433487,3.28491539,3044.3,3044.0,0.005]
[1752599433787,3.28504319,3044.1,3044.0,0.005]
[1752599433950,3.28504319,3044.1,3044.0,0.4596]
[1752599434148,10.39158809,3044.1,3044.0,0.005]
[1752599434343,10.35894233,3044.1,3044.0,0.005]
[1752599434547,5.9586,3044.1,3044.0,0.005]
[1752599434800,9.24364319,3044.1,3044.0,0.005]
[1752599434945,0.7655,3044.4,3044.0,0.005]
[1752599435142,3.28493528,3044.2,3044.1,0.4546]
[1752599435347,3.31758104,3044.2,3044.0,0.005]
[1752599435579,8.50658104,3044.2,3044.0,0.005]
[1752599435760,5.189,3044.2,3044.0,0.005]
[1752599435942,5.22164576,3044.2,3044.0,0.005]
[1752599436148,0.03264576,3044.2,3044.0,3.29013095]
[1752599436387,0.03264576,3044.5,3044.1,0.4546]
[1752599436688,5.189,3044.4,3044.2,0.4546]
[1752599436891,4.05994977,3044.9,3044.2,3.73951606]
[1752599437075,0.03264576,3044.8,3044.3,0.7056]
[1752599437256,0.4583,3045.3,3044.4,0.4546]
[1752599437257,5.189,3045.0,3044.4,0.4546]
[1752599437460,5.189,3045.0,3044.5,3.28454227]
[1752599437461,0.03264576,3044.9,3044.5,3.28454227]
[1752599437672,0.03264576,3044.9,3044.5,3.73914227]
[1752599437869,0.03264576,3044.9,3044.6,3.2844037]
[1752599438068,0.03264576,3044.9,3044.3,3.56858592]
[1752599438275,3.28431337,3044.8,3044.3,3.53575746]
[1752599438592,3.164,3044.6,3044.0,0.169]
[1752599438776,8.50630828,3044.5,3044.0,0.169]
[1752599438977,8.47366252,3044.5,3044.0,0.169]
[1752599439305,3.28494474,3044.2,3044.0,0.169]
[1752599439604,11.91113342,3044.1,3044.0,0.005]
[1752599439893,12.33678766,3044.1,3044.0,0.005]
[1752599441266,13.12148766,3044.1,3044.0,0.005]
[1752599441471,13.12148766,3044.1,3044.0,1e-08]
[1752599441657,3.2861227,3043.1,3043.0,0.164]
[1752599441860,5.84620606,3043.1,3042.4,0.005]
[1752599442058,0.7912,3042.6,3042.4,0.169]
[1752599442261,5.189,3042.6,3042.4,0.6236]
[1752599443089,5.189,3042.7,3042.5,0.4546]
[1752599443293,5.189,3042.7,3042.4,3.45587824]
[1752599443294,5.189,3042.7,3042.4,0.169]
[1752599443510,5.19,3042.6,3042.4,0.169]
[1752599443657,5.19,3042.5,3042.4,3.45587877]
[1752599443862,8.47677074,3042.5,3042.4,0.005]
[1752599444059,0.789,3042.4,3040.9,0.4546]
[1752599444282,0.789,3042.4,3042.2,3.28709486]
[1752599444283,0.19664576,3042.3,3042.2,3.28709486]
[1752599444483,5.22264576,3042.6,3042.2,3.28709486]
[1752599444705,6.04491034,3042.6,3041.6,0.24215578]
[1752599444980,4.12009187,3042.3,3041.4,3.28795949]
[1752599445191,4.12009187,3042.3,3040.7,10.86500457]
[1752599445192,0.8331,3042.0,3040.5,0.256]
[1752599445361,0.03264576,3041.9,3041.6,3.28769719]
[1752599445560,5.19,3041.8,3041.5,3.28778123]
[1752599445779,0.03264576,3041.9,3041.5,3.74238123]
[1752599445979,0.03264576,3042.3,3041.6,0.74347743]
[1752599446198,0.03264576,3042.3,3041.2,0.24545947]
[1752599446404,6.28732911,3042.0,3041.2,3.28809626]
[1752599446575,8.47893082,3042.4,3040.6,3.2887834]
[1752599446576,4.12096828,3041.5,3040.8,3.28854516]
[1752599446778,5.23164576,3041.4,3040.6,0.25186612]
[1752599446974,3.28834559,3041.1,3040.3,3.73282461]
[1752599447181,8.52603834,3041.0,3040.4,3.28899064]
[1752599447512,3.28899895,3040.5,3040.0,1.05681818]
[1752599447804,5.64723566,3040.4,3040.0,1.05681818]
[1752599448005,5.64723566,3040.4,3040.0,1.50051818]
[1752599448006,0.03264576,3040.4,3040.0,1.50051818]
[1752599448216,5.205,3040.3,3040.0,1.50051818]
[1752599448563,5.23764576,3040.3,3040.0,1.50051818]
[1752599448808,0.03264576,3040.5,3040.0,1.05681818]
[1752599448964,3.0,3040.1,3040.0,1.05681818]
[1752599449163,3.30326458,3040.1,3040.0,1.05681818]
[1752599449384,7.86453006,3040.1,3040.0,1.05681818]
[1752599450264,0.7676,3039.7,3038.4,0.24851054]
[1752599450479,0.7676,3040.4,3039.9,3.28958189]
[1752599450798,5.232,3041.0,3039.0,10.86500457]
[1752599450799,0.03264576,3040.3,3039.8,0.7728]
[1752599451100,0.465,3040.8,3040.0,0.4437]
[1752599451288,0.03264576,3040.7,3040.0,0.4437]
[1752599451488,6.28889841,3040.6,3040.0,3.2894623]
[1752599451798,0.8223,3041.2,3040.0,3.2894623]
[1752599451799,0.03264576,3040.5,3040.4,3.28904091]
[1752599451975,0.03264576,3041.1,3040.4,0.4437]
[1752599452318,3.32099178,3041.1,3040.5,3.28886183]
[1752599452675,6.32097522,3041.1,3040.4,3.28901786]
[1752599452891,0.41432918,3041.0,3040.4,3.28901786]
[1752599453087,0.03264576,3040.9,3040.2,5.244]
[1752599453264,0.03264576,3040.9,3040.3,5.243]
[1752599453469,0.03264576,3041.1,3040.4,0.0328904]
[1752599453668,0.03264576,3041.1,3040.5,4.06298664]
[1752599453902,0.03264576,3041.6,3041.3,3.28796351]
[1752599454105,0.03264576,3041.8,3041.5,3.28778842]
[1752599454266,0.03264576,3041.8,3041.2,5.246]
[1752599454602,0.7799,3042.8,3041.7,3.45159375]
[1752599454826,0.03264576,3042.7,3042.3,3.28689828]
[1752599455003,0.03264576,3042.7,3042.4,3.28680999]
[1752599455170,0.03264576,3043.0,3042.4,0.47656878]
[1752599455374,0.03264576,3043.0,3042.6,0.164]
[1752599455375,3.31891024,3043.0,3042.6,0.164]
[1752599455602,6.71232961,3042.9,3042.6,0.164]
[1752599455783,0.03264576,3042.8,3042.6,0.164]
[1752599455983,4.06313362,3043.1,3042.7,0.4437]
[1752599456301,0.7769303,3043.1,3042.8,0.4437]
[1752599456478,0.7769303,3043.1,3042.9,0.164]
[1752599456679,6.28623069,3043.0,3042.9,0.164]
[1752599456909,4.02519255,3043.0,3042.9,0.164]
[1752599457110,3.73896186,3043.0,3042.9,0.164]
[1752599457406,3.28589907,3043.4,3042.9,0.4437]
[1752599457570,3.28558856,3043.6,3043.0,3.31902429]
[1752599457772,0.03264576,3044.0,3043.0,0.4765623]
[1752599457967,1.73000917,3043.2,3043.0,5.7325623]
[1752599458203,1.16021422,3043.1,3043.0,8.9859252]
[1752599458407,1.16021422,3043.1,3042.5,0.4437]
[1752599458604,3.0,3043.3,3042.2,5.7481]
[1752599458605,3.28655063,3042.8,3042.2,5.7481]
[1752599458906,0.87026047,3042.7,3042.3,3.28690394]
[1752599459108,0.87026047,3042.7,3042.4,0.4437]
[1752599459290,0.766,3042.5,3041.5,0.4437]
[1752599459494,3.0,3042.3,3041.5,0.4437]
[1752599459691,3.28753828,3041.8,3041.5,0.4437]
[1752599459879,3.28753828,3041.8,3041.2,5.266]
[1752599459880,3.28753828,3041.8,3041.1,4.07666176]
[1752599460087,3.28765829,3041.7,3041.2,8.58604301]
[1752599460285,0.03264576,3042.0,3041.2,8.58604301]
[1752599460286,3.32020242,3041.8,3041.3,0.4437]
[1752599460476,3.32023891,3041.8,3041.3,0.4437]
[1752599460674,0.87026047,3041.8,3041.4,0.03287959]
[1752599460901,3.28746208,3041.9,3041.4,0.03287959]
[1752599461111,3.2876352,3041.7,3041.3,5.262]
[1752599461514,0.03264576,3041.8,3041.3,5.7057]
[1752599461721,4.63220243,3042.9,3041.7,0.55]
[1752599461885,1.43006679,3042.9,3042.3,3.28688324]
[1752599462091,0.87026047,3042.4,3042.3,8.55688324]
[1752599462321,0.87026047,3042.4,3042.2,3.28706337]
[1752599462507,1.73000917,3042.5,3042.3,5.7147]
[1752599462700,1.15934418,3042.5,3042.4,3.86974755]
[1752599463023,0.76194196,3042.9,3042.8,3.28644669]
[1752599463216,0.76194196,3042.9,3042.8,3.73014669]
[1752599463387,3.28654753,3042.8,3042.0,0.825]
[1752599463587,0.40484895,3042.7,3042.1,0.03287202]
[1752599463896,3.0,3042.5,3042.1,0.03287202]
[1752599464102,6.69144886,3042.7,3042.1,3.32007103]
[1752599464303,0.76194196,3042.9,3042.2,3.28709486]
[1752599464625,0.76194196,3042.9,3042.3,0.57293986]
[1752599464842,0.76194196,3042.9,3042.8,3.28644669]
[1752599465124,0.76194196,3042.9,3042.8,3.73014669]
[1752599465326,0.76194196,3042.9,3042.8,5.275]
[1752599465692,0.76194196,3042.9,3042.8,8.56144669]
[1752599466030,0.76194196,3042.9,3042.8,9.00514669]
[1752599467024,0.76194196,3042.9,3042.8,5.275]
[1752599467228,0.76194196,3042.9,3042.5,0.4437]
[1752599467526,3.28729815,3042.1,3041.5,4.06087595]
[1752599467706,3.61599914,3042.1,3041.5,4.06092894]
[1752599467908,3.28731715,3042.0,3041.5,4.06092894]